Cogmind - Beta 14 @@@ ROGUE MODE // 2024.08.27 @ 19:31:28 Player: GlasMayne Result: Destroyed by G-47 Trooper with Particle Gun Performance ------------- Evolutions (2) 1000 Regions Visited (4) 800 Robots Destroyed (33) 165 Value Destroyed (743) 743 Prototype IDs (1) 20 Alien Tech Used (0) 0 Bonus (0) 0 TOTAL SCORE: 2728 Bonus ------- None Cogmind --------- Core Integrity 0/550 Matter 88/300 Energy 100/100 System Corruption 0% Temperature Cool (9) Movement Treading (250) Ox1 Location -8/Materials Parts ------- > --- POWER (1) -------- (None) > --- PROPULSION (4) --- Armored Treads Armored Treads > --- UTILITY (4) ------ High-capacity Storage Unit Weapon Cycler > --- WEAPON (2) ------- Lightning Gun Minigun > --- INVENTORY (20) --- Improved Signal Interpreter Improved Signal Interpreter Weapon Cycler Cobbler Unit Lightning Gun Light Cannon Advanced Assault Cannon Advanced Assault Cannon Grenade Launcher Makeshift Hammer Peak State ------------ > --- POWER ------------ (None) > --- PROPULSION ------- Armored Treads Armored Treads > --- UTILITY ---------- High-capacity Storage Unit Weapon Cycler Heavy Armor Plating > --- WEAPON ----------- Minigun Makeshift Hammer > --- INVENTORY -------- Improved Signal Interpreter Improved Signal Interpreter Weapon Cycler Cobbler Unit Lightning Gun Lightning Gun Light Cannon Advanced Assault Cannon Advanced Assault Cannon Grenade Launcher [Rating: 27] Favorites ----------- Power Light Nuclear Core Engine Ion Engine Power Core Light Nuclear Core Propulsion Light Treads Treads Light Treads Utility Seismic Detector Device Seismic Detector Storage Large Storage Unit Protection Heavy Armor Plating Weapon Assault Rifle Energy Gun Lightning Gun Ballistic Gun Assault Rifle Ballistic Cannon Light Cannon Launcher Grenade Launcher Special Weapon Mining Laser Impact Weapon Makeshift Hammer Build | -11 -10 -10 -10 -8 ------- Run | Yrd Mat Min Sub Mat Slots Evolved 4 | . . . . 4 Power . | . . . . . Propulsion 2 | . . . . 2 Utility 2 | . . . . 2 Weapon . | . . . . . Parts Attached 43 | 7 7 5 3 21 Power 4 | 1 1 1 . 1 Engine 1 | 1 . . . . Core 3 | . 1 1 . 1 Reactor . | . . . . . Propulsion 7 | 1 2 1 . 3 Treads 7 | 1 2 1 . 3 Leg . | . . . . . Wheel . | . . . . . Hover . | . . . . . Flight . | . . . . . Utility 16 | 3 2 2 1 8 Device 8 | 2 . 2 1 3 Storage 6 | 1 2 . . 3 Processor . | . . . . . Hackware . | . . . . . Protection 2 | . . . . 2 Artifact . | . . . . . Weapon 16 | 2 2 1 2 9 Energy Gun 1 | . . . . 1 Energy Cannon . | . . . . . Ballistic Gun 8 | 2 2 . . 4 Ballistic Cannon 2 | . . . 2 . Launcher 1 | . . . . 1 Special Weapon 2 | . . 1 . 1 Impact Weapon 2 | . . . . 2 Slashing Weapon . | . . . . . Piercing Weapon . | . . . . . Special Melee Weapon . | . . . . . Unidentified Prototypes 1 | . . 1 . . Parts Lost 14 | . 5 . . 9 Power 1 | . . . . 1 Propulsion 5 | . 2 . . 3 Utility 4 | . 1 . . 3 Weapon 4 | . 2 . . 2 Highest Loss Streak 8 | . 3 . . 8 To Critical Strikes . | . . . . . Average Slot Usage (%) 86 | . 93 82 100 61 Engine 3 | . 5 . . . Core 9 | . 8 14 14 5 Treads 23 | . 22 28 28 18 Device 13 | . 14 10 14 11 Storage 12 | . 14 14 14 7 Ballistic Gun 18 | . 27 14 7 2 Ballistic Cannon 2 | . . . 14 5 Special Weapon 1 | . . . 7 . Impact Weapon 1 | . . . . 5 Peak Build Rating 27 | 8 10 16 16 27 Average Rating 10 | 5 8 12 12 18 On Entrance 8 | . 6 7 16 13 Naked Turns . | . . . . . Heaviest Build 63 | 14 30 32 32 63 Greatest Support 60 | 20 40 40 40 60 Greatest Overweight (x) 17 | . 1 . . 17 Average Overweight (x) . | . . . . . Largest Inventory Capacity 20 | 8 15 15 15 20 Average Capacity 12 | 7 10 15 15 17 Most Carried 15 | 6 12 12 13 15 Average Carried 9 | 4 9 11 11 11 Final Capacity 20 | 8 15 15 15 20 Final Carried 13 | 6 12 11 13 11 Class Distribution -------------------- 71% | Mutant 28% | Scavenger-Mutant Dominant Class ---------------- Mutant | -10/Materials Mutant | -10/Mines Mutant | -10/Subcaves Mutant | -8/Materials Resources | -11 -10 -10 -10 -8 ----------- Run | Yrd Mat Min Sub Mat Matter Collected 903 | 330 275 . 48 250 Remotely . | . . . . . Salvage Created 1044 | 160 458 . 61 365 Parts 72 | 19 39 . 6 8 Haulers Intercepted 2 | . 2 . . . Recyclers Shooed 2 | 1 1 . . . Parts Field Recycled . | . . . . . Retrieved Matter . | . . . . . Parts Self-Destructed 6 | . . . 6 . Prevented . | . . . . . Kills | -11 -10 -10 -10 -8 ------- Run | Yrd Mat Min Sub Mat Combat Hostiles Destroyed 20 | . 12 . 2 6 Melee 1 | . . . . 1 Guns 15 | . 12 . 1 2 Cannons 1 | . . . 1 . AOE 1 | . . . . 1 Classes Destroyed 12 | 3 4 . 2 3 Worker 1 | 1 . . . . Builder 1 | . 1 . . . Tunneler 5 | 5 . . . . Hauler 2 | . 2 . . . Recycler 3 | 1 . . . 2 Watcher 1 | . . . . 1 Swarmer 6 | . 6 . . . Grunt 9 | . 6 . 1 2 Duelist 1 | . . . . 1 Sentry 3 | . . . 1 2 Hunter 1 | . . . . 1 Cobbler 1 | . . . 1 . Best Kill Streak 5 | 3 4 . 2 5 Combat Bots Only 3 | . 3 . 2 3 Max Kills in Single Turn 2 | 1 2 . 1 1 Gunslinging 1 | . 1 . . . Exploded 1 | . . . . 1 Melee 1 | . . . . 1 Uniques/NPCs Destroyed . | . . . . . Combat | -11 -10 -10 -10 -8 -------- Run | Yrd Mat Min Sub Mat Hostile Shots Fired 332 | . 106 . 14 212 Missed 88 | . 21 . 5 62 Damage Taken 3118 | . 816 . 118 2184 Core 653 | . 100 . . 553 Absorbed by Shields . | . . . . . Core Remaining (%) 80 | 100 . . 60 . Volleys Fired 94 | 15 55 2 7 15 Largest 2 | 2 2 1 2 2 Hottest 120 | 40 40 100 120 100 Shots Fired 169 | 30 104 2 14 19 Gun 152 | 30 104 . 5 13 Cannon 4 | . . . 4 . Launcher 4 | . . . . 4 Special 9 | . . 2 5 2 Kinetic 155 | 30 104 . 9 12 Thermal 9 | . . 2 5 2 Explosive 4 | . . . . 4 Electromagnetic 1 | . . . . 1 Robot Hit Streak 14 | 5 14 . 6 8 Robot Miss Streak 5 | 2 4 . 5 5 Penetration Max . | . . . . . Secondary Targets 3 | . 2 . . 1 Max Gunslinging Chain 1 | . 1 . . 1 Shots Hit Robots 122 | 17 64 . 9 32 Core Hits 56 | 9 28 . 6 13 Critical Kills . | . . . . . Critical Parts Destroyed 4 | . 2 . . 2 Critical Strikes 4 | . 2 . . 2 Destroy 2 | . 2 . . . Smash 2 | . . . . 2 Melee Attacks 34 | . . . . 34 Impact 34 | . . . . 34 Slashing . | . . . . . Piercing . | . . . . . Sneak Attacks 1 | . . . . 1 Combat Hostiles . | . . . . . Follow-up Attacks . | . . . . . Damage Inflicted 2329 | 175 719 . 150 1285 Guns 1182 | 175 719 . 51 237 Cannons 51 | . . . 51 . Explosions 265 | . . . . 265 Melee 768 | . . . . 768 Ramming 15 | . . . . 15 Kinetic 1217 | 175 719 . 102 221 Thermal 48 | . . . 48 . Explosive 265 | . . . . 265 Electromagnetic 16 | . . . . 16 Impact 768 | . . . . 768 Slashing . | . . . . . Piercing . | . . . . . Highest Corruption 2 | . 2 2 2 . Average Corruption 1 | . 1 2 2 . Corruption Purged . | . . . . . Corruption Blocked . | . . . . . Effects 13 | . 4 5 4 . Matter Fused 7 | . 2 2 3 . Heat Flow Errors 2 | . 1 1 . . Data Loss (minor) 3 | . . 2 1 . Misfires 1 | . 1 . . . Overload Shots . | . . . . . Overflow Damage 246 | . . . . 246 Projectiles . | . . . . . Explosions . | . . . . . Melee 246 | . . . . 246 Knockbacks 4 | . . . . 4 Impact 4 | . . . . 4 Kinetic . | . . . . . Secondary . | . . . . . Self-Inflicted Damage 16 | . . . . 16 Shots 1 | . . . . 1 Rammed 3 | . . . . 3 Targets Rammed 3 | . . . . 3 Kicked . | . . . . . Crushed . | . . . . . Highest Temperature 192 | . 111 192 . 48 Average Temperature 25 | . 14 68 . 11 Received Heat Transfer 1101 | . 234 . 48 819 Siege Activations . | . . . . . Robots Corrupted 3 | . . . . 3 Combat Hostiles 2 | . . . . 2 Parts Fried 2 | . . . . 2 Impact Corruptions 10 | . . . . 10 Robots Melted . | . . . . . Combat Hostiles . | . . . . . Parts Melted . | . . . . . Heat Transferred 100 | . . . 100 . Parts Sabotaged . | . . . . . Parts Stolen . | . . . . . Parts Stripped . | . . . . . Power Chain Reactions . | . . . . . Alert | -11 -10 -10 -10 -8 ------- Run | Yrd Mat Min Sub Mat Peak Influence 243 | 35 243 25 . 153 Initial 25 | . 22 25 . . Average 72 | 13 106 25 . 32 Maximum Alert Level 1 | . 1 . . . Low Security (%) 92 | 100 86 100 . 100 Level 1 7 | . 13 . . . Level 2 . | . . . . . Level 3 . | . . . . . Level 4 . | . . . . . Level 5 . | . . . . . High Security . | . . . . . Max Security . | . . . . . Squads Dispatched 2 | . . . . 2 Investigation . | . . . . . Extermination . | . . . . . Reinforcement 2 | . . . . 2 Assault . | . . . . . Garrison . | . . . . . Intercept . | . . . . . Searches Triggered . | . . . . . Construction Impeded 2 | . . . . 2 Haulers Reinforced . | . . . . . Active Scanning Responses . | . . . . . Cargo Convoy Interrupts . | . . . . . Stealth | -11 -10 -10 -10 -8 --------- Run | Yrd Mat Min Sub Mat Distress Signals 5 | . 2 . . 3 Communications Jammed . | . . . . . Distress Signals . | . . . . . Times Spotted 54 | . 32 . 2 20 Peak Tracking Total 9 | . 6 . 2 9 Tactical Retreats 4 | . 2 . . 2 Traps | -11 -10 -10 -10 -8 ------- Run | Yrd Mat Min Sub Mat Traps Triggered 2 | . 2 . . . Indirectly . | . . . . . Trap Hack Attempts . | . . . . . Triggered . | . . . . . Disarmed . | . . . . . Reprogrammed . | . . . . . Reused . | . . . . . Traps Extracted . | . . . . . Installed . | . . . . . Triggered . | . . . . . Machines | -11 -10 -10 -10 -8 ---------- Run | Yrd Mat Min Sub Mat Machines Disabled . | . . . . . Max in Single Turn . | . . . . . Machines Repaired . | . . . . . Machines Dismantled . | . . . . . Machines Sabotaged . | . . . . . Overloaded Fab Kills . | . . . . . Hacking | -11 -10 -10 -10 -8 --------- Run | Yrd Mat Min Sub Mat Machines Accessed 9 | . 8 1 . . Terminals 8 | . 8 . . . Fabricators . | . . . . . Repair Stations . | . . . . . Recycling Units . | . . . . . Scanalyzers . | . . . . . Garrison Access . | . . . . . Total Hacks 16 | . 15 1 . . Successful 10 | . 9 1 . . Failed 6 | . 6 . . . Catastrophic 2 | . 2 . . . Database Lockouts . | . . . . . Manual 13 | . 13 . . . Terminals 15 | . 15 . . . Fabricators . | . . . . . Repair Stations . | . . . . . Recycling Units . | . . . . . Scanalyzers . | . . . . . Garrison Access . | . . . . . Terminal Hacks 4 | . 3 1 . . Open Door 1 | . . 1 . . Branch Access Points 1 | . 1 . . . Locate Traps 1 | . 1 . . . Zone Layout 1 | . 1 . . . Fabricator Hacks . | . . . . . Repair Station Hacks . | . . . . . Recycling Unit Hacks . | . . . . . Scanalyzer . | . . . . . Garrison Access Hacks . | . . . . . Unauthorized Hacks 6 | . 6 . . . Terminals 6 | . 6 . . . Assimilate 1 | . 1 . . . Skim 5 | . 5 . . . Fabricators . | . . . . . Repair Stations . | . . . . . Recycling Units . | . . . . . Scanalyzers . | . . . . . Garrison Access . | . . . . . Data Cores Recovered . | . . . . . Used . | . . . . . Hacking Detections 5 | . 5 . . . Full Trace Events 1 | . 1 . . . Feedback Events 1 | . 1 . . . Corruption 1 | . 1 . . . Feedback Blocked . | . . . . . Robot Schematics Acquired . | . . . . . Robots Built . | . . . . . Authchips . | . . . . . Time . | . . . . . Total Robot Build Rating . | . . . . . Part Schematics Acquired . | . . . . . Parts Built . | . . . . . Authchips . | . . . . . Time . | . . . . . Total Part Build Rating . | . . . . . Parts Repaired . | . . . . . Time . | . . . . . Parts Recycled . | . . . . . Recycled Matter . | . . . . . Retrieved Matter . | . . . . . Retrieved Components . | . . . . . Parts Scanalyzed . | . . . . . Part Schematics Acquired . | . . . . . Parts Damaged . | . . . . . Bothacking | -11 -10 -10 -10 -8 ------------ Run | Yrd Mat Min Sub Mat Used RIF Installer . | . . . . . Robots Hacked . | . . . . . Non-combat . | . . . . . Combat . | . . . . . Robot Hacks Applied . | . . . . . Relay Couplers Released . | . . . . . Fabnet Peak Effective % . | . . . . . Robots Rewired . | . . . . . Allies Hacked . | . . . . . Hacks Repelled . | . . . . . Allies | -11 -10 -10 -10 -8 -------- Run | Yrd Mat Min Sub Mat Total Allies 1 | . . 1 . . Largest Group 1 | . . 1 . . Highest-Rated Group 31 | . . 31 . . Highest-Rated Ally 31 | . . 31 . . Total Orders . | . . . . . Ally Attacks . | . . . . . Total Damage . | . . . . . Kills . | . . . . . Allies Corrupted . | . . . . . Allies Melted . | . . . . . Intel | -11 -10 -10 -10 -8 ------- Run | Yrd Mat Min Sub Mat Robot Analysis Total . | . . . . . Derelict Logs Recovered 2 | . . 2 . . Drone Launches . | . . . . . Drone Recoveries . | . . . . . Exploration | -11 -10 -10 -10 -8 ------------- Run | Yrd Mat Min Sub Mat Turns Passed 3339 | 282 1689 373 403 592 Spaces Moved 1586 | 143 921 148 183 191 Core 36 | 3 . . . 33 Treads 1550 | 140 921 148 183 158 Legs . | . . . . . Wheels . | . . . . . Hover . | . . . . . Flight . | . . . . . Fastest Speed 50 | 50 160 160 160 50 Average Speed 163 | 157 160 160 160 192 Slowest Speed 900 | 160 240 160 160 900 Overloaded Moves . | . . . . . Propulsion Burnouts . | . . . . . Robots Hopped . | . . . . . Cave-ins Triggered . | . . . . . Exploration Rate (%) 33 | 7 93 33 14 22 Regions Visited 4 Branch Regions 2 Pre-discovered Areas 1 | . 1 . . . Known Exits Taken 2 | . 1 1 . . Unknown Exits Taken 2 | 1 . . 1 . Scrap Searched . | . . . . . Spaces Dug 4 | . . . . 4 Terrain Destroyed 16 | . . . . 16 Melee 2 | . . . . 2 Projectile 2 | . . . . 2 AOE 12 | . . . . 12 Terrain Rammed . | . . . . . Walls Destroyed . | . . . . . Machines Disabled . | . . . . . Actions | -11 -10 -10 -10 -8 --------- Run | Yrd Mat Min Sub Mat Total 2111 | 170 1042 278 268 353 Wait 310 | . 41 120 75 74 Move 1582 | 142 920 147 182 191 Hop . | . . . . . Pick Up 27 | 5 12 2 1 7 Fast Attach 16 | 7 . 1 . 8 Attach 12 | . 3 3 . 6 Detach 6 | 1 . 1 . 4 Swap 15 | . 4 1 3 7 Drop 12 | . 7 1 . 4 Fire 94 | 15 55 2 7 15 Melee 34 | . . . . 34 Ram . | . . . . . Kick . | . . . . . Crush 3 | . . . . 3 Escape Stasis . | . . . . . Rewire . | . . . . . Trap . | . . . . . Miscellaneous . | . . . . . Route ------- -11/Scrapyard -10/Materials (discovered 5 exits: *Mat x3 / *Min / Sub) -10/Mines (discovered 2 exits: Mat / *Sub) -10/Subcaves -8/Materials (discovered 3 exits: Fac x3) History --------- Turn | Location | Event 2 | -11/Scrapyard | Met Revision 17 4 | -11/Scrapyard | Discovered new exit (range 15) 283 | -11/Scrapyard | Entered Materials 303 | -10/Materials | Build established: Mutant 545 | -10/Materials | Discovered new exit (range 16) 1129 | -10/Materials | Discovered new exit (range 10) 1238 | -10/Materials | Discovered new exit (range 15) 1272 | -10/Materials | Build established: Scavenger-Mutant 1350 | -10/Materials | Identified exit to Mines 1615 | -10/Materials | Discovered new exit (range 14) 1651 | -10/Materials | Identified exit to Subcaves 1700 | -10/Materials | Loaded intel: 17 non-interactive machine locations 1738 | -10/Materials | Learned 4 Recycling zone layouts 1768 | -10/Materials | Loaded intel: 2 recycling unit locations 1787 | -10/Materials | Learned location of Mines (-10) 1797 | -10/Materials | Learned location of 1 exit from Recycling 1799 | -10/Materials | Learned location of 3 exits from Materials 1813 | -10/Materials | Learned Storage emergency access door positions 1838 | -10/Materials | Learned location of 2 exits from Mines 1871 | -10/Materials | Learned Recycling recycling unit intel 1972 | -10/Materials | Entered Mines 1973 | -10/Mines | Identified exit to Materials 1974 | -10/Mines | Met a Derelict bent on vengeance 1975 | -10/Mines | Received a Mining Laser from a helpful Derelict 2002 | -10/Mines | Lost 3 parts (1n1u1w) 2025 | -10/Mines | Learned Materials stockpile data 2086 | -10/Mines | Build established: Mutant 2169 | -10/Mines | Learned 8 Materials zone layouts 2175 | -10/Mines | Found the Drone Emporium 2180 | -10/Mines | Found Prototype Device 2186 | -10/Mines | Identified Thief Drone Bay 2345 | -10/Mines | Entered Subcaves 2662 | -10/Subcaves | A swath of the cavern ceiling suddenly collapsed 2723 | -10/Subcaves | Discovered new exit (range 2) 2748 | -10/Subcaves | Entered Materials 2748 | -8/Materials | Evolved 4 slots: Propulsion x2, Utility x2 2749 | -8/Materials | Identified exit to Factory 3113 | -8/Materials | Core integrity fell below 50% 3145 | -8/Materials | Core integrity fell below 20% 3152 | -8/Materials | Lost 8 parts (1p3n2u2w) 3340 | -8/Materials | Destroyed by G-47 Trooper with Particle Gun Last Messages --------------- 03234_ Acquired Adv. Assault Cannon. 03241_ Acquired Weapon Cycler. 03247_ K-01 Serf cleans the Scanalyzer. 03269_ Acquired Hvy. Armor Plating. 03273_ Acquired Minigun. 03295_ Penetrated by Slug. 03299_ Slammed into H-55 Commando. 03301_ Slug penetrates Wall. 03301_ Slammed into U-05 Engineer. 03303_ ALERT: Construction progress impeded, dispatching reinforcements to local area. 03304_ Slammed into R-06 Scavenger. 03304_ R-06 Scavenger destroyed. 03323_ U-05 Engineer builds a Door. 03325_ R-06 Scavenger collects Com. Wheel. 03326_ R-06 Scavenger collects Sml. Storage Unit. 03328_ R-06 Scavenger collects Tractor Beam. 03333_ K-01 Serf destroyed. 03335_ K-01 Serf collects debris. 03335_ Hvy. Armor Plating destroyed. Map ----- +----------------------------------------------------+ | ?# #????????????????# + """ #????????# """ | | ?# #????????????????# # ! """ #????????# """ | | ?# #????????????????# # #????????# | | ?# #????????????????# # #????????# " " | | ?# #????????????????# ###########????????# "R" | | ?# #????????????????# #????????########### """ | | ?# #????#######??????????????????????????????????? | | ## ###### #####????????????????????????####+## | | ????????????????????????# T | | T ????????????????????????+ | | ????????????????????????? | | ######### ###+#????????????????????????### | | #?????## ### ????????????????????????#"" | | #??????# #?# ????????????????????????#"Y / | | #??????# #?# ?????????#############??#"" | | #??????# #?# ????????# #???# [! | | #??????# #?# ????????# """ """ """ #?### ! | | #??????# #?# ????????# """ """ """ #?# ! | | #??????# #?# ????????? """ """ """ ??# | | #??????# #?####??????????? ????# | | #??????# #?????????????????? !??????# ##### | | #??????# #?????######??????###+###???### ###?# | | #?????## ####### ####### u u #???# #?# | | ##### ## a % g g ##### #?# | | + w r Y/ r % #?# | | ##### ####w @ g #####! ### | | ????# #####+######## ####### h #??## ! ## | | ????# ## #?####+##??????#######???######### | | ##### ## """"" #?#?????????????????????????# | | ## ""T"" #?#???????????????????? ????# | | ####### #?#?????????????????????????# | | #?????# #?# """ #???????# + | | #?????# """ #?# #???????# # | | #?????# """ ### """ #???????# ! # | | #?????# """ # # """ #???????# # | | #?????# ### """ #???????# ### | | #?????##########?# #???????#########??# | | #?????# #????????#+#####+########??########??# ? | | #?????# #????????# #???# # #??# ?# ? | | #?????# #?????#### ##### # #??# """" ??# ?? | | ##???########### + #??# """" ?? ??? | | ?????# T # # #??# """" ?????? | | ?????# # # #??# ?????? | | ?????# # # #??# """" ?????? | | ?????# + ########??# """" ?????? | | ?????# """ """ # #?????????# """" ??#??? | | ?????# """ """ ###+## #?????????# ?????? | | ?????# """ """ ## # ##?????????#########???? | | ?????# ## # ###########??????????? ?? | | ?????############ # # #??????????# | +----------------------------------------------------+ Best States ------------- Heat Dissipation 31 Energy Generation 14 Energy Capacity 250 Matter Stores 300 Matter Capacity 300 Sight Range 16 Terrain Scan Range 16 Terrain Scan Density 10 Armor Coverage 600 Weapon Cycling 15 Evasion (%) 40 Recoil Reduction 3 Item Schematics ----------------- None Robot Schematics ------------------ None Fabricated ------------ Nothing Alien Tech Used ----------------- None Achievements -------------- True Hacker Challenges ------------ None Game ------ Seed PitchforkSwordReplicator Manual? 0 Play Time 00:28:01 Cumulative 15.6 hours Start 2024.08.27 @ 02:08:49 End 2024.08.27 @ 19:31:28 Sessions 3 Manual Loads 0 Difficulty Rogue Special Mode None Game No. 25 Rogue 25 Adventurer 0 Explorer 0 Win Type - Total 0 Types 0/0/0/0/0/0/0/0/0 Lore% 10 Gallery% 23 Achievement% 16 Wizard Run 0 Options --------- Layout 0 ASCII 0 Keyboard 1 Movement Arrows Keybinds 0 Fullscreen 1 Font 18/SmallcapsGlow Map View 76x50 Zoom Use 0% Tactical HUD 1 Map Filters NONE Filters NONE Steam 1 RUN: e65ad6c3-e104-4afc-8350-f2fc14a2ff2b